[Event "DVM U20 2019"]
[Site "Braunschweig"]
[Date "2019.12.29"]
[Round "5"]
[White "Goldbeck, Lars"]
[Black "Roseneck, Jonas"]
[Result "0-1"]
[ECO "A50"]
[WhiteElo "2312"]
[BlackElo "2417"]
[Annotator "ChessBase"]
[PlyCount "94"]
[EventDate "2019.12.27"]
[EventType "team-tourn"]
[EventRounds "7"]
[EventCountry "GER"]
[SourceTitle "playchess.com"]
[Source "ChessBase"]
[SourceQuality "1"]
[WhiteTeam "SC Bavaria Regensburg"]
[BlackTeam "SG Aufbau Elbe Magdeburg"]
[TimeControl "40/5400+30:1800+30"]

1. d4 {[%emt 0:00:00]} Nf6 {[%emt 0:00:00]} 2. c4 {[%emt 0:00:00]} g6 {[%emt 0:00:00]} 3. f3 {[%emt 0:00:00]} Nc6 {[%emt 0:00:00]} 4. d5 {[%emt 0:00:14]} Ne5 {[%emt 0:00:12]} 5. e4 {[%emt 0:00:22]} d6 {[%emt 0:00:33]} 6. Nc3 {[%emt 0:00:05]} Bg7 {[%emt 0:00:26]} 7. f4 {[%emt 0:02:53]} Ned7 {[%emt 0:00:02]} 8. Nh3 {[%emt 0:01:00]} O-O {[%emt 0:00:24]} 9. Be2 {[%emt 0:03:29]} Nb6 {[%emt 0:03:34]} 10. Nf2 {[%emt 0:00:26]} e6 {[%emt 0:00:06]} 11. O-O {[%emt 0:04:31]} exd5 {[%emt 0:00:02]} 12. exd5 {[%emt 0:03:07]} Re8 {[%emt 0:05:26]} 13. Bd3 {[%emt 0:15:35]} c6 {[%emt 0:39:43]} 14. Qf3 {[%emt 0:07:21]} Nfd7 {[%emt 0:10:04]} 15. Nce4 {[%emt 0:12:56]} Qc7 {[%emt 0:08:50]} 16. Bd2 {[%emt 0:09:40]} cxd5 {[%emt 0:03:01]} 17. cxd5 {[%emt 0:00:02]} Nxd5 {[%emt 0:00:15]} 18. Rac1 {[%emt 0:00:32]} Qb6 {[%emt 0:00:44]} 19. Bc4 {[%emt 0:01:33]} N7f6 {[%emt 0:03:42]} 20. Kh1 {[%emt 0:04:23]} Bd7 {[%emt 0:05:21]} 21. Ng5 {[%emt 0:02:36]} Bc6 {[%emt 0:00:39]} 22. f5 {[%emt 0:02:42]} Re7 {[%emt 0:09:06]} 23. fxg6 {[%emt 0:09:28]} hxg6 {[%emt 0:01:10]} 24. Ng4 {[%emt 0:02:43]} Nxg4 {[%emt 0:01:23]} 25. Qxg4 {[%emt 0:00:01]} Qd4 {[%emt 0:01:37]} 26. Qxd4 {[%emt 0:07:46]} Bxd4 {[%emt 0:00:01]} 27. b4 {[%emt 0:01:44]} Be3 {[%emt 0:01:03]} 28. Bxe3 {[%emt 0:00:37]} Nxe3 {[%emt 0:00:01]} 29. Bxf7+ {[%emt 0:00:41]} Kg7 {[%emt 0:00:40]} 30. Rf2 {[%emt 0:00:55]} Rf8 {[%emt 0:02:29]} 31. Re1 {[%emt 0:01:56]} Re5 {[%emt 0:00:31]} 32. h4 {[%emt 0:01:19]} Ng4 {[%emt 0:00:25]} 33. Rff1 {[%emt 0:02:32]} Rxe1 {[%emt 0:00:04]} 34. Rxe1 {[%emt 0:00:02]} Rxf7 {[%emt 0:00:14]} 35. Nxf7 Kxf7 {[%emt 0:00:00]} 36. Kg1 {[%emt 0:00:14]} Kf6 {[%emt 0:00:43]} 37. g3 {[%emt 0:01:36]} d5 {[%emt 0:00:29]} 38. Rf1+ {[%emt 0:00:21]} Ke5 {[%emt 0:01:15]} 39. Rf4 {[%emt 0:00:23]} Nf6 {[%emt 0:00:08]} 40. Kf2 {[%emt 0:03:33]} Ne4+ {[%emt 0:00:10]} 41. Kf3 {[%emt 0:03:14]} d4 {[%emt 0:01:49]} 42. Rf8 {[%emt 0:00:23]} d3 {[%emt 0:04:02]} 43. Rd8 {[%emt 0:03:26]} d2 {[%emt 0:00:51]} 44. Ke2 {[%emt 0:00:37]} Bb5+ {[%emt 0:00:46]} 45. Ke3 {[%emt 0:00:30]} Ba4 {[%emt 0:00:05]} 46. Ke2 {[%emt 0:00:21]} d1=Q+ {[%emt 0:00:06]} 47. Rxd1 {[%emt 0:00:08]} Nc3+ {[%emt 0:00:27] normal} 0-1

[Event "DVM U20 2019"]
[Site "Braunschweig"]
[Date "2019.12.29"]
[Round "5"]
[White "Kueppers, Timo"]
[Black "Yankelevich, Michael"]
[Result "1/2-1/2"]
[ECO "A37"]
[WhiteElo "2296"]
[BlackElo "2064"]
[Annotator "ChessBase"]
[PlyCount "138"]
[EventDate "2019.12.27"]
[EventType "team-tourn"]
[EventRounds "7"]
[EventCountry "GER"]
[SourceTitle "playchess.com"]
[Source "ChessBase"]
[SourceQuality "1"]
[WhiteTeam "SF Essen-Katernberg"]
[BlackTeam "SG Trier"]
[TimeControl "40/5400+30:1800+30"]

1. c4 {[%emt 0:00:50]} c5 {[%emt 0:00:24]} 2. g3 {[%emt 0:00:20]} Nc6 {[%emt 0:00:13]} 3. Bg2 {[%emt 0:00:06]} g6 {[%emt 0:00:05]} 4. Nc3 {[%emt 0:00:06]} Bg7 {[%emt 0:00:05]} 5. Nf3 {[%emt 0:00:04]} e5 {[%emt 0:00:04]} 6. O-O {[%emt 0:00:08]} d6 {[%emt 0:01:04]} 7. a3 {[%emt 0:00:51]} a5 {[%emt 0:02:28]} 8. Ne1 {[%emt 0:01:01]} Be6 {[%emt 0:00:37]} 9. d3 {[%emt 0:00:00]} Nge7 {[%emt 0:00:08]} 10. Nc2 {[%emt 0:00:00]} O-O {[%emt 0:00:20]} 11. Ne3 f5 {[%emt 0:02:31]} 12. Ned5 {[%emt 0:01:02]} h6 {[%emt 0:02:21]} 13. Bd2 {[%emt 0:01:39]} Bf7 14. Rb1 {[%emt 0:06:17]} Nxd5 {[%emt 0:01:00]} 15. Nxd5 Ne7 16. Nxe7+ {[%emt 0:01:41]} Qxe7 {[%emt 0:00:36]} 17. b4 {[%emt 0:00:09]} axb4 {[%emt 0:01:09]} 18. axb4 e4 {[%emt 0:01:16]} 19. dxe4 {[%emt 0:25:31]} fxe4 {[%emt 0:00:13]} 20. Bf4 {[%emt 0:01:24]} Rad8 {[%emt 0:00:44]} 21. Qc2 {[%emt 0:04:54]} g5 {[%emt 0:01:00]} 22. Be3 {[%emt 0:01:35]} cxb4 {[%emt 0:00:46]} 23. Bxe4 {[%emt 0:07:27]} Rc8 {[%emt 0:00:33]} 24. Rxb4 {[%emt 0:04:24]} d5 {[%emt 0:01:20]} 25. Bh7+ {[%emt 0:00:55]} Kh8 {[%emt 0:00:03]} 26. c5 {[%emt 0:01:44]} b6 {[%emt 0:04:40]} 27. Bf5 {[%emt 0:10:03]} Be6 {[%emt 0:01:23]} 28. Bxe6 {[%emt 0:01:40]} Qxe6 {[%emt 0:00:02]} 29. Rc1 {[%emt 0:05:14]} bxc5 {[%emt 0:00:27]} 30. Bxc5 {[%emt 0:01:28]} Rf7 {[%emt 0:03:39]} 31. Rb6 {[%emt 0:02:47]} Qe5 {[%emt 0:03:14]} 32. Qb1 {[%emt 0:07:26]} Rfc7 {[%emt 0:01:37]} 33. Rb8 {[%emt 0:01:23]} Qxe2 {[%emt 0:00:43]} 34. Re1 {[%emt 0:10:41]} Qxe1+ {[%emt 0:00:17]} 35. Qxe1 {[%emt 0:00:21]} Rxb8 {[%emt 0:00:03]} 36. Bd6 {[%emt 0:00:20]} Ra8 {[%emt 0:00:23]} 37. Be5 {[%emt 0:01:54]} Rd7 {[%emt 0:00:58]} 38. Bxg7+ {[%emt 0:00:46]} Rxg7 {[%emt 0:00:39]} 39. Qe6 {[%emt 0:00:23]} Kh7 {[%emt 0:00:23]} 40. Qf5+ {[%emt 0:00:11]} Kh8 {[%emt 0:00:06]} 41. Qxd5 {[%emt 0:30:07]} Rag8 {[%emt 0:30:33]} 42. Qe5 {[%emt 0:01:05]} Kh7 {[%emt 0:00:39]} 43. Kg2 {[%emt 0:01:17]} Rf7 {[%emt 0:00:33]} 44. Qe4+ {[%emt 0:00:00]} Rg6 {[%emt 0:00:00]} 45. h4 {[%emt 0:00:00]} gxh4 {[%emt 0:00:00]} 46. Qxh4 {[%emt 0:00:00]} Rgf6 {[%emt 0:00:00]} 47. Qe4+ {[%emt 0:00:00]} Kg7 {[%emt 0:00:00]} 48. Qe5 {[%emt 0:00:00]} Kh7 {[%emt 0:00:00]} 49. Qe4+ {[%emt 0:00:00]} Kg7 50. f4 {[%emt 0:00:00]} Rf5 {[%emt 0:00:00]} 51. Kh3 {[%emt 0:00:00]} R7f6 {[%emt 0:00:00]} 52. Kg4 {[%emt 0:00:00]} h5+ {[%emt 0:00:00]} 53. Kh4 {[%emt 0:00:00]} Rf7 {[%emt 0:00:00]} 54. Qd4+ {[%emt 0:00:00]} Kh7 {[%emt 0:00:00]} 55. Kh3 {[%emt 0:00:00]} R7f6 {[%emt 0:00:00]} 56. Qe4 {[%emt 0:00:00]} Kg7 57. Qe7+ {[%emt 0:00:00]} Kg8 {[%emt 0:00:00]} 58. Kg2 {[%emt 0:00:00]} Kh8 {[%emt 0:00:00]} 59. Qb7 {[%emt 0:00:00]} Kg8 {[%emt 0:00:00]} 60. Qa7 {[%emt 0:00:00]} Kh8 {[%emt 0:00:00]} 61. Qe7 {[%emt 0:00:00]} Kg8 {[%emt 0:00:00]} 62. Qb7 {[%emt 0:00:00]} Kh8 {[%emt 0:00:00]} 63. Kf2 {[%emt 0:00:00]} Rf7 {[%emt 0:00:00]} 64. Qc6 {[%emt 0:00:00]} Kg7 65. Qc3+ {[%emt 0:00:00]} Kh7 {[%emt 0:00:00]} 66. Qd3 {[%emt 0:00:00]} Kg7 67. Qd8 {[%emt 0:00:00]} R7f6 {[%emt 0:00:00]} 68. Ke3 {[%emt 0:00:00] normal} h4 {[%emt 0:00:00]} 69. Qe7+ {[%emt 0:00:00]} Kg6 1/2-1/2

[Event "DVM U20 2019"]
[Site "Braunschweig"]
[Date "2019.12.29"]
[Round "5"]
[White "Sieber, Fiona"]
[Black "Schneider, Jana"]
[Result "1/2-1/2"]
[ECO "C96"]
[WhiteElo "2277"]
[BlackElo "2210"]
[Annotator "ChessBase"]
[PlyCount "60"]
[EventDate "2019.12.27"]
[EventType "team-tourn"]
[EventRounds "7"]
[EventCountry "GER"]
[SourceTitle "playchess.com"]
[Source "ChessBase"]
[SourceQuality "1"]
[WhiteTeam "SG Aufbau Elbe Magdeburg"]
[BlackTeam "SC Bavaria Regensburg"]
[TimeControl "40/5400+30:1800+30"]

1. e4 {[%emt 0:00:00]} e5 {[%emt 0:00:00]} 2. Nf3 {[%emt 0:00:00]} Nc6 {[%emt 0:00:00]} 3. Bb5 {[%emt 0:00:00]} a6 {[%emt 0:00:00]} 4. Ba4 {[%emt 0:00:00]} Nf6 {[%emt 0:00:02]} 5. O-O {[%emt 0:00:00]} Be7 {[%emt 0:00:25]} 6. Re1 {[%emt 0:00:11]} b5 {[%emt 0:00:08]} 7. Bb3 {[%emt 0:00:05]} d6 {[%emt 0:00:11]} 8. c3 {[%emt 0:00:06]} O-O {[%emt 0:00:34]} 9. h3 {[%emt 0:00:07]} Na5 {[%emt 0:00:05]} 10. Bc2 {[%emt 0:00:05]} c5 {[%emt 0:00:06]} 11. d4 {[%emt 0:00:05]} Nd7 {[%emt 0:00:06]} 12. Nbd2 {[%emt 0:00:20]} cxd4 {[%emt 0:00:22]} 13. cxd4 {[%emt 0:00:06]} exd4 {[%emt 0:00:37]} 14. Nxd4 {[%emt 0:00:17]} Bf6 {[%emt 0:01:08]} 15. Nf1 {[%emt 0:00:42]} Ne5 {[%emt 0:00:29]} 16. b3 {[%emt 0:06:44]} Nec6 {[%emt 0:06:42]} 17. Bb2 {[%emt 0:01:52]} Qb6 {[%emt 0:01:33]} 18. Nxc6 {[%emt 0:01:39]} Bxb2 {[%emt 0:00:11]} 19. Ne7+ {[%emt 0:00:18]} Kh8 {[%emt 0:00:08]} 20. Rb1 {[%emt 0:02:46]} Bd4 {[%emt 0:04:13]} 21. Ne3 {[%emt 0:04:11]} Be6 {[%emt 0:01:25]} 22. Qd3 {[%emt 0:06:54]} Rfe8 {[%emt 0:08:29]} 23. N7d5 {[%emt 0:03:47]} Bxd5 {[%emt 0:00:54]} 24. Nxd5 {[%emt 0:13:16]} Qa7 {[%emt 0:10:56]} 25. Kh1 {[%emt 0:02:32]} g6 {[%emt 0:03:29]} 26. Rbd1 {[%emt 0:07:00]} Nc6 {[%emt 0:01:01]} 27. f4 {[%emt 0:03:29]} Bg7 {[%emt 0:03:39]} 28. b4 {[%emt 0:02:15]} a5 {[%emt 0:10:47]} 29. bxa5 {[%emt 0:04:50]} Qxa5 {[%emt 0:02:33]} 30. Bb3 {[%emt 0:00:09]} Nd4 {[%emt 0:00:59] normal} 1/2-1/2

[Event "DVM U20 2019"]
[Site "Braunschweig"]
[Date "2019.12.29"]
[Round "5"]
[White "Oberhofer, Cedric"]
[Black "Biastoch, Bennet"]
[Result "0-1"]
[ECO "B93"]
[WhiteElo "2260"]
[BlackElo "2242"]
[Annotator "ChessBase"]
[PlyCount "61"]
[EventDate "2019.12.27"]
[EventType "team-tourn"]
[EventRounds "7"]
[EventCountry "GER"]
[SourceTitle "playchess.com"]
[Source "ChessBase"]
[SourceQuality "1"]
[WhiteTeam "SC Bavaria Regensburg"]
[BlackTeam "SG Aufbau Elbe Magdeburg"]
[TimeControl "40/5400+30:1800+30"]

1. e4 {[%emt 0:00:00]} c5 {[%emt 0:00:00]} 2. Nf3 {[%emt 0:00:00]} d6 {[%emt 0:00:06]} 3. d4 {[%emt 0:00:00]} cxd4 {[%emt 0:00:08]} 4. Nxd4 {[%emt 0:00:00]} Nf6 {[%emt 0:00:12]} 5. Nc3 {[%emt 0:00:00]} a6 {[%emt 0:01:02]} 6. f4 {[%emt 0:00:13]} e5 {[%emt 0:00:18]} 7. Nf3 {[%emt 0:00:10]} Nbd7 {[%emt 0:01:07]} 8. a4 {[%emt 0:00:16]} Be7 {[%emt 0:00:25]} 9. Bc4 {[%emt 0:00:48]} O-O {[%emt 0:01:52]} 10. O-O {[%emt 0:09:04]} exf4 {[%emt 0:02:49]} 11. Kh1 {[%emt 0:08:41]} Nc5 {[%emt 0:05:21]} 12. Qe2 {[%emt 0:11:02]} Be6 {[%emt 0:14:58]} 13. Bxe6 {[%emt 0:04:58]} Nxe6 {[%emt 0:06:15]} 14. Nd5 {[%emt 0:01:19]} Nc5 {[%emt 0:04:00]} 15. Bxf4 {[%emt 0:11:55]} Re8 {[%emt 0:16:46]} 16. Nxe7+ {[%emt 0:10:29]} Qxe7 {[%emt 0:00:30]} 17. e5 {[%emt 0:02:40]} Ncd7 {[%emt 0:05:37]} 18. Rae1 {[%emt 0:08:24]} dxe5 {[%emt 0:01:15]} 19. Nxe5 {[%emt 0:01:12]} Nxe5 {[%emt 0:00:51]} 20. Qxe5 {[%emt 0:02:25]} Qb4 {[%emt 0:00:38]} 21. c3 {[%emt 0:00:27]} Qxa4 {[%emt 0:01:56]} 22. Qf5 {[%emt 0:02:07]} Rxe1 {[%emt 0:05:13]} 23. Rxe1 {[%emt 0:00:01]} Re8 {[%emt 0:00:16]} 24. Rxe8+ {[%emt 0:01:20]} Nxe8 {[%emt 0:04:35]} 25. h3 {[%emt 0:08:50]} Qa1+ {[%emt 0:01:19]} 26. Kh2 {[%emt 0:00:03]} Qxb2 {[%emt 0:00:19]} 27. Qe5 {[%emt 0:00:10]} Qb5 {[%emt 0:00:34]} 28. Qe7 {[%emt 0:00:04]} h6 {[%emt 0:02:13]} 29. Bc1 {[%emt 0:03:00]} Nf6 {[%emt 0:04:52]} 30. Ba3 {[%emt 0:00:47]} Qd7 {[%emt 0:06:08]} 31. Qe5 {[%emt 0:01:02] normal} 0-1

[Event "DVM U20 2019"]
[Site "Braunschweig"]
[Date "2019.12.29"]
[Round "5"]
[White "Vuckovic, Zarko"]
[Black "Stelmaszyk, Nico"]
[Result "1/2-1/2"]
[ECO "C55"]
[WhiteElo "2258"]
[BlackElo "2193"]
[Annotator "ChessBase"]
[PlyCount "153"]
[EventDate "2019.12.27"]
[EventType "team-tourn"]
[EventRounds "7"]
[EventCountry "GER"]
[SourceTitle "playchess.com"]
[Source "ChessBase"]
[SourceQuality "1"]
[WhiteTeam "SF Augsburg"]
[BlackTeam "SK Lehrte 1919"]
[TimeControl "40/5400+30:1800+30"]

1. e4 {[%emt 0:00:00]} e5 {[%emt 0:00:00]} 2. Nf3 {[%emt 0:00:00]} Nc6 {[%emt 0:00:00]} 3. Bc4 {[%emt 0:01:32]} Nf6 {[%emt 0:00:00]} 4. d4 {[%emt 0:00:03]} exd4 {[%emt 0:00:00]} 5. e5 {[%emt 0:00:06]} d5 {[%emt 0:00:00]} 6. Bb5 {[%emt 0:00:03]} Ne4 {[%emt 0:00:04]} 7. Nxd4 {[%emt 0:00:04]} Bc5 {[%emt 0:00:06]} 8. Be3 {[%emt 0:00:07]} Bxd4 {[%emt 0:00:06]} 9. Qxd4 {[%emt 0:02:16]} O-O {[%emt 0:00:15]} 10. Bxc6 {[%emt 0:00:02]} bxc6 {[%emt 0:00:06]} 11. Nc3 {[%emt 0:00:25]} Ng5 {[%emt 0:00:13]} 12. O-O-O {[%emt 0:00:38]} Ne6 {[%emt 0:00:12]} 13. Qa4 {[%emt 0:01:51]} Bd7 {[%emt 0:00:06]} 14. Qa3 {[%emt 0:00:04]} f6 {[%emt 0:00:06]} 15. exf6 {[%emt 0:06:30]} Qxf6 {[%emt 0:00:07]} 16. Ne2 {[%emt 0:00:30]} Be8 {[%emt 0:08:30]} 17. Nd4 {[%emt 0:02:51]} Nxd4 {[%emt 0:10:06]} 18. Bxd4 {[%emt 0:00:10]} Qg5+ {[%emt 0:01:23]} 19. Qe3 {[%emt 0:00:11]} Qxe3+ 20. Bxe3 {[%emt 0:00:19]} Bh5 {[%emt 0:03:21]} 21. f3 {[%emt 0:01:30]} Rfe8 {[%emt 0:00:55]} 22. Rhe1 {[%emt 0:01:18]} a6 {[%emt 0:03:31]} 23. Kd2 {[%emt 0:01:22]} Re7 {[%emt 0:01:27]} 24. Bd4 {[%emt 0:01:11]} Rae8 {[%emt 0:00:22]} 25. Rxe7 {[%emt 0:00:09]} Rxe7 {[%emt 0:00:04]} 26. a4 {[%emt 0:00:10]} Kf7 {[%emt 0:01:07]} 27. Ra1 {[%emt 0:00:06]} Ke8 {[%emt 0:02:11]} 28. Ra3 {[%emt 0:00:03]} Kd7 {[%emt 0:03:01]} 29. Rc3 {[%emt 0:00:23]} Be8 {[%emt 0:01:22]} 30. Rc5 {[%emt 0:01:45]} Kc8 {[%emt 0:00:27]} 31. Rc3 {[%emt 0:05:43]} Kd7 {[%emt 0:05:04]} 32. h3 {[%emt 0:14:16]} g6 {[%emt 0:01:27]} 33. Bc5 {[%emt 0:00:38]} Rf7 {[%emt 0:06:35]} 34. Ke3 {[%emt 0:00:43]} Kc8 {[%emt 0:05:14]} 35. Rb3 {[%emt 0:00:12]} Bd7 {[%emt 0:01:05]} 36. Rb4 {[%emt 0:04:20]} Bf5 {[%emt 0:01:20]} 37. Kd2 {[%emt 0:01:56]} Rd7 {[%emt 0:03:23]} 38. Ba7 {[%emt 0:02:44]} Rd8 {[%emt 0:00:34]} 39. Rf4 {[%emt 0:00:09]} Kd7 {[%emt 0:01:52]} 40. g4 {[%emt 0:00:30]} Be6 {[%emt 0:00:12]} 41. Bc5 {[%emt 0:34:37]} Rb8 {[%emt 0:32:48]} 42. Kc3 {[%emt 0:00:07]} Re8 {[%emt 0:00:14]} 43. Kd4 {[%emt 0:02:44]} Bg8 {[%emt 0:01:58]} 44. Rf8 {[%emt 0:00:03]} Rxf8 {[%emt 0:04:00]} 45. Bxf8 {[%emt 0:00:06]} Ke6 {[%emt 0:02:03]} 46. Bh6 {[%emt 0:00:08]} Bf7 {[%emt 0:00:57]} 47. Bf4 {[%emt 0:03:29]} Be8 {[%emt 0:14:03]} 48. Bxc7 {[%emt 0:00:12]} c5+ {[%emt 0:00:21]} 49. Kxc5 {[%emt 0:00:35]} Bxa4 {[%emt 0:00:21]} 50. c3 {[%emt 0:02:25]} Bd1 {[%emt 0:00:28]} 51. f4 {[%emt 0:00:05]} Be2 {[%emt 0:00:12]} 52. g5 {[%emt 0:00:58]} Bc4 {[%emt 0:01:34]} 53. Be5 {[%emt 0:00:05]} Bd3 {[%emt 0:02:06]} 54. Kc6 {[%emt 0:00:08]} Bb5+ {[%emt 0:00:52]} 55. Kc7 {[%emt 0:00:18]} Bf1 {[%emt 0:00:15]} 56. h4 {[%emt 0:00:13]} Bc4 {[%emt 0:00:16]} 57. Kd8 {[%emt 0:00:17]} Bb5 {[%emt 0:00:07]} 58. Bc7 {[%emt 0:01:15]} Kf5 {[%emt 0:11:33]} 59. Ke7 {[%emt 0:00:52]} Kg4 {[%emt 0:00:31]} 60. Kf6 {[%emt 0:00:19]} Kxh4 {[%emt 0:01:13]} 61. b3 {[%emt 0:01:21]} Be2 {[%emt 0:02:51]} 62. Ke5 {[%emt 0:00:28]} Bf3 {[%emt 0:01:00]} 63. c4 {[%emt 0:00:57]} dxc4 {[%emt 0:00:14]} 64. bxc4 {[%emt 0:00:01]} Kh5 {[%emt 0:00:00]} 65. Ba5 {[%emt 0:00:00]} h6 {[%emt 0:00:00]} 66. gxh6 {[%emt 0:00:00]} Kxh6 {[%emt 0:00:00]} 67. c5 {[%emt 0:00:00]} Kh5 {[%emt 0:00:00]} 68. Bd2 {[%emt 0:00:00]} Kg4 {[%emt 0:00:00]} 69. Kd6 {[%emt 0:00:00]} a5 {[%emt 0:00:00]} 70. c6 {[%emt 0:00:00]} a4 {[%emt 0:00:00]} 71. c7 {[%emt 0:00:00]} Bb7 {[%emt 0:00:00]} 72. Ke5 {[%emt 0:00:00]} a3 {[%emt 0:00:00]} 73. Bc3 {[%emt 0:00:00]} Bc8 {[%emt 0:00:00]} 74. Ke4 {[%emt 0:00:00]} g5 {[%emt 0:00:00]} 75. fxg5 {[%emt 0:00:00]} Kxg5 {[%emt 0:00:00]} 76. Kd4 {[%emt 0:00:00]} Kh4 {[%emt 0:00:00]} 77. Ke4 {normal} 1/2-1/2

[Event "DVM U20 2019"]
[Site "Braunschweig"]
[Date "2019.12.29"]
[Round "5"]
[White "Holinka, Henning"]
[Black "Poghosyan, Tigran"]
[Result "1-0"]
[ECO "B94"]
[WhiteElo "2233"]
[BlackElo "2302"]
[Annotator "NA"]
[PlyCount "82"]
[EventDate "2019.12.27"]
[EventType "team-tourn"]
[EventRounds "7"]
[EventCountry "GER"]
[SourceTitle "playchess.com"]
[Source "ChessBase"]
[SourceQuality "1"]
[WhiteTeam "Hamburger SK"]
[BlackTeam "Lübecker SV"]
[TimeControl "40/5400+30:1800+30"]

1. e4 {[%emt 0:00:00]} c5 {[%emt 0:00:00]} 2. Nf3 {[%emt 0:00:00]} d6 {[%emt 0:00:00]} 3. d4 {[%emt 0:00:00]} cxd4 {[%emt 0:00:00]} 4. Nxd4 {[%emt 0:00:00]} Nf6 {[%emt 0:00:00]} 5. Nc3 {[%emt 0:00:00]} a6 {[%emt 0:00:00] unterminated} 6. Bg5 {[%emt 0:01:52]} Nbd7 {[%emt 0:00:21] unterminated} ({Predecessor:} 6... e6 7. f4 Nbd7 {0-1 (51) Yu,Y (2626)-Negi,P (2640) Ho Chi Minh City 2012}) 7. Qe2 {[%emt 0:08:14] unterminated} e6 {[%emt 0:00:57] unterminated} 8. f4 {[%emt 0:03:05]} Qc7 {[%emt 0:00:36] unterminated} 9. O-O-O {[%emt 0:05:03]} b5 {[%emt 0:00:49] unterminated} 10. a3 {[%emt 0:02:35] unterminated unterminated. B96: Sicilian Najdorf: 6 Bg5 e6 7 f4, lines other than 7...Qb6 and 7...Be7} Be7 $146 {[%emt 0:02:01] unterminated} (10... Bb7 11. g4 h6 12. Bh4 Be7 13. Be1 Rc8 14. Bg2 Qc4 15. Qd2 Nxg4 16. Rg1 b4 17. axb4 Qxb4 {1-0 (36) Tsydypov,Z (2529)-Nepomniachtchi,I (2763) St Petersburg 2018}) 11. g4 {[%emt 0:01:45] unterminated} Rb8 {[%emt 0:01:29] unterminated} 12. Bg2 {[%emt 0:14:56] unterminated} h6 {[%emt 0:00:39] unterminated} 13. Bh4 {[%emt 0:04:30] unterminated} b4 {[%emt 0:02:32] unterminated} 14. axb4 {[%emt 0:05:22]} Rxb4 {[%emt 0:00:12] unterminated} 15. Bf2 {[%emt 0:09:10] unterminated} (15. Be1 $5 {[%cal Rc3d5]}) 15... g5 {[%emt 0:01:23] unterminated} 16. fxg5 {[%emt 0:26:03]} Nxg4 {[%emt 0:01:18] unterminated} 17. Qxg4 {[%emt 0:03:56]} Bxg5+ {[%emt 0:00:05] unterminated} 18. Kb1 {[%emt 0:01:11]} Qxc3 {[%emt 0:00:07]} 19. Nb3 {[%emt 0:00:52] unterminated} Qc7 {[%emt 0:04:51] unterminated} 20. Qg3 {[%emt 0:03:22] unterminated} e5 {[%emt 0:21:05] unterminated} 21. h4 {[%emt 0:01:12] unterminated} Be7 {[%emt 0:07:01] unterminated} 22. Be1 {[%emt 0:03:22] unterminated} Rb8 {[%emt 0:02:27]} 23. Rf1 {[%emt 0:01:07]} Nf6 {[%emt 0:01:19]} 24. Bd2 {[%emt 0:02:39]} Rg8 {[%emt 0:02:00]} 25. Qf2 {[%emt 0:01:12]} Be6 {[%emt 0:00:07]} 26. Bf3 {[%emt 0:00:46]} Qb7 {[%emt 0:07:54]} 27. Bxh6 {[%emt 0:00:35]} a5 {[%emt 0:00:03]} 28. Bc1 {[%emt 0:00:26] unterminated} a4 {[%emt 0:04:04]} 29. Nd2 {[%emt 0:00:11] unterminated} Kd7 $17 {[%emt 0:01:53] unterminated} 30. Be2 {[%emt 0:00:54]} Ng4 {[%emt 0:19:54]} 31. Qg3 {[%emt 0:00:19]} Nf6 {[%emt 0:04:04]} 32. Qa3 {[%emt 0:00:29]} d5 {[%emt 0:05:53]} 33. Qxa4+ {[%emt 0:00:16]} Kd8 {[%emt 0:00:01]} 34. Nc4 {[%emt 0:00:52]} Nxe4 {[%emt 0:02:07]} 35. Qa5+ {[%emt 0:00:24]} Qc7 {[%emt 0:00:12]} 36. Rxd5+ {[%emt 0:00:25]} Kc8 {[%emt 0:03:12]} 37. Qa6+ {[%emt 0:00:43]} Qb7 {[%emt 0:00:01]} 38. Nb6+ {[%emt 0:00:32]} Kc7 {[%emt 0:00:07]} 39. Qxb7+ {[%emt 0:00:26]} Rxb7 {[%emt 0:00:52]} 40. Rxe5 {[%emt 0:00:14]} Ng3 {[%emt 0:03:40]} 41. Nd5+ {[%emt 0:10:41]} Kd6 {[%emt 0:14:44] normal} 1-0